[Event "Baku Open 2024"]
[Site "Baku"]
[Date "2024.07.03"]
[Round "5.2"]
[White "Yeletsky, Ivan"]
[Black "Aditya Mittal"]
[Result "1/2-1/2"]
[ECO "B90"]
[WhiteElo "2498"]
[BlackElo "2595"]
[Annotator "TA"]
[PlyCount "50"]
[EventDate "2024.06.29"]
[EventType "swiss"]
[EventCountry "AZE"]
[SourceTitle "playchess.com"]
[Source "ChessBase"]
[SourceQuality "1"]
[TimeControl "5400+30"]

{[%evp 15,50,8,8,14,7,0,11,-10,14,12,17,11,2,9,6,0,0,2,16,5,51,36,61,31,37,-12,-9,-11,-13,-8,-16,-3,-8,-8,-14,-8,-9]} 1. e4 {[%emt 0:00:25]} c5 {[%emt 0:00:01]} 2. Nf3 {[%emt 0:00:15]} d6 {[%emt 0:00:01]} 3. d4 {[%emt 0:00:28]} cxd4 {[%emt 0:00:02]} 4. Nxd4 {[%emt 0:00:12]} Nf6 {[%emt 0:00:01]} 5. Nc3 {[%emt 0:00:25]} a6 {[%emt 0:00:02]} 6. a4 {[%emt 0:00:35]} e5 {[%emt 0:00:58]} 7. Nf3 {[%emt 0:00:14]} Be7 {[%emt 0:00:57]} 8. Bc4 {[%emt 0:00:26]} Be6 {[%emt 0:09:51]} 9. Qe2 {[%emt 0:01:15]} O-O {[%emt 0:02:51]} 10. O-O {[%emt 0:01:01]} Qc7 {[%emt 0:06:11]} 11. Bb3 {[%emt 0:02:24]} Nbd7 {[%emt 0:05:51]} 12. Bg5 {[%emt 0:04:30]} Rac8 {[%emt 0:03:05]} 13. Rfd1 {[%emt 0:01:46]} h6 {[%emt 0:06:02]} 14. Bxf6 {[%emt 0:00:14]} Nxf6 {[%emt 0:00:03]} 15. h3 {[%emt 0:13:59]} Rfd8 {[%emt 0:08:06]} 16. a5 {[%emt 0:15:06]} Qc6 {[%emt 0:07:18]} 17. Rd3 {[%emt 0:08:37]} b5 {[%emt 0:08:28]} (17... Nh5 $11 {was preferrable.}) 18. axb6 $14 {[%emt 0:00:20]} Qxb6 {[%emt 0:00:14]} 19. Nh4 {[%emt 0:05:29]} Qb7 {[%emt 0:14:43]} 20. Rad1 {[%emt 0:04:15]} (20. Nf5 $14 {might be stronger.}) 20... Bxb3 $11 {[%emt 0:11:18] The position is equal.} 21. cxb3 {[%emt 0:00:15]} g6 $1 {[%emt 0:01:37][%cal Of6h5] Inhibits Nf5.} 22. Nf3 {[%emt 0:09:42]} Qxb3 {[%emt 0:00:11]} 23. Nd5 {[%emt 0:00:13]} Qb7 {[%emt 0:00:01]} 24. Nxf6+ {[%emt 0:00:14]} Bxf6 {[%emt 0:00:01]} 25. Rxd6 {[%emt 0:00:12]} Rxd6 {[%emt 0:03:03] Weighted Error Value: White=0.07 (flawless) /Black=0.07 (flawless) .  Mistake:       	White=1     	Black=1      Inaccurate:     	White=1     	---        OK:         	White=5     	Black=6      Best:        	White=3     	Black=1      Strong:       	---       	Black=1} 1/2-1/2

[Event "Baku Open 2024"]
[Site "Baku"]
[Date "2024.07.03"]
[Round "5.3"]
[White "Narayanan S L"]
[Black "Ahmadzada, Ahmad"]
[Result "1-0"]
[ECO "E56"]
[WhiteElo "2668"]
[BlackElo "2481"]
[Annotator "TA"]
[PlyCount "43"]
[EventDate "2024.06.29"]
[EventType "swiss"]
[EventCountry "AZE"]
[SourceTitle "playchess.com"]
[Source "ChessBase"]
[SourceQuality "1"]
[TimeControl "5400+30"]

{[%evp 19,43,38,22,25,17,31,33,33,45,31,33,37,68,50,208,211,199,231,223,231,233,220,254,245,264,262]} 1. d4 {[%emt 0:01:12]} Nf6 {[%emt 0:00:07]} 2. c4 {[%emt 0:00:05]} e6 {[%emt 0:00:04]} 3. Nf3 {[%emt 0:00:18]} d5 {[%emt 0:00:08]} 4. Nc3 {[%emt 0:00:06]} c5 {[%emt 0:00:30]} 5. e3 {[%emt 0:00:17]} a6 {[%emt 0:00:20]} 6. cxd5 {[%emt 0:00:12]} exd5 {[%emt 0:00:06]} 7. Bd3 {[%emt 0:00:20]} Nc6 {[%emt 0:00:39]} 8. O-O {[%emt 0:00:17]} Bd6 {[%emt 0:02:56]} 9. dxc5 {[%emt 0:10:10]} Bxc5 {[%emt 0:00:07]} 10. h3 {[%emt 0:00:13]} O-O {[%emt 0:01:45]} 11. b3 {[%emt 0:00:52]} d4 {[%emt 0:11:57]} 12. exd4 {[%emt 0:05:57]} Nxd4 {[%emt 0:02:54]} 13. Bb2 {[%emt 0:00:32] White is slightly better.} Bf5 {[%emt 0:05:07] aiming for ...Nxf3+.} 14. Bxf5 {[%emt 0:09:17]} Nxf5 {[%emt 0:00:15]} 15. Qc2 {[%emt 0:00:07]} Qc8 {[%emt 0:10:34]} 16. Rac1 {[%emt 0:03:36]} Re8 {[%emt 0:21:23] Dodges Ne4} (16... Ne3 $14 17. fxe3 Bxe3+ 18. Kh1 Nh5) 17. Na4 $18 {[%emt 0:13:01]} Ba7 {[%emt 0:01:28]} 18. Qb1 {[%emt 0:01:11]} Qd7 {[%emt 0:02:46]} 19. Nc5 $1 {[%emt 0:03:26]} Bxc5 {[%emt 0:04:11]} 20. Rxc5 {[%emt 0:00:18]} Ne4 {[%emt 0:03:17] [#]} 21. Rd1 $1 {[%emt 0:03:41]} ({Resist} 21. Ne5 Qe7 $18) 21... Nfd6 {[%emt 0:05:14] [#]} 22. Ng5 $1 {[%emt 0:01:31] White took control after the opening.   Weighted Error Value: White=0.01 (flawless) /Black=0.26 (precise) .  Mistake:       	---       	Black=1      Inaccurate:     	---       	Black=1      OK:         	White=5     	Black=4      Best:        	White=1     	Black=1      Strong:       	White=3     	---} 1-0

[Event "Baku Open 2024"]
[Site "Baku"]
[Date "2024.07.03"]
[Round "5.4"]
[White "Mamedov, Rauf"]
[Black "Salimova, Nurgyul"]
[Result "1-0"]
[ECO "A14"]
[WhiteElo "2651"]
[BlackElo "2436"]
[Annotator "TA"]
[PlyCount "59"]
[EventDate "2024.06.29"]
[EventType "swiss"]
[EventCountry "AZE"]
[SourceTitle "playchess.com"]
[Source "ChessBase"]
[SourceQuality "1"]
[TimeControl "5400+30"]

{[%evp 25,59,25,45,46,60,46,88,95,93,83,94,90,90,85,227,245,273,262,509,275,916,922,971,962,1706,1737,1978,1953,3243,3070,29988,29989,29987,29988,29986,29985]} 1. c4 {[%emt 0:00:05]} e6 {[%emt 0:01:06]} 2. g3 {[%emt 0:00:05]} d5 {[%emt 0:00:43]} 3. Bg2 {[%emt 0:00:05]} Nf6 {[%emt 0:00:05]} 4. Nf3 {[%emt 0:00:05]} Be7 {[%emt 0:02:50]} 5. O-O {[%emt 1:32:40]} O-O {[%emt 0:01:56]} 6. b3 {[%emt 0:00:00]} b6 {[%emt 0:03:07]} 7. Bb2 {[%emt 0:00:00]} Bb7 {[%emt 0:00:16]} 8. e3 {[%emt 0:00:00]} dxc4 {[%emt 0:03:24]} 9. bxc4 {[%emt 0:00:00]} c5 {[%emt 1:21:33]} 10. Nc3 {[%emt 0:00:00]} Nc6 {[%emt 0:00:30]} 11. Qe2 {[%emt 0:00:00]} Nb4 {[%emt 0:00:00]} 12. d4 {[%emt 0:00:00]} cxd4 {[%emt 0:00:00]} 13. exd4 {[%emt 0:00:00]} Rc8 {[%emt 0:00:00]} 14. Rfd1 {[%emt 0:00:00]} Re8 {[%emt 0:00:00]} 15. a3 {[%emt 0:00:00]} Nc6 {[%emt 0:00:00]} 16. d5 {[%emt 0:00:00] White is better.} exd5 {[%emt 0:00:00]} 17. Nxd5 {[%emt 0:06:00]} (17. cxd5 Na5 $11) 17... Nxd5 {[%emt 0:00:00]} 18. Rxd5 {[%emt 0:00:30]} (18. cxd5 Na5 $15) 18... Qc7 {[%emt 0:00:00]} 19. Re1 {[%emt 0:00:30] Threatens to win with Bh3. White is much more active.} h6 {[%emt 0:04:30]} (19... Na5 $16 {keeps fighting.}) 20. Nh4 $18 {[%emt 0:00:30][%cal Bf3h4,Bh4f5,Bf5h6,Bh6g4][%mdl 32] Nf5 would now be deadly.} Qb8 {[%emt 0:00:00] Strongly threatening ...Bxh4.} 21. Qg4 {[%emt 0:00:00][%csl Gb2][%cal Rg4g7]} Bg5 $2 {[%emt 0:01:00]} (21... Bf8 {is a better defense.} 22. Be4 Ne7 (22... Ne5 $2 23. Bxe5 Bxd5 24. Bxb8 $18)) 22. Red1 {[%emt 0:00:00]} Nd8 $2 {[%emt 0:00:00] [#]} (22... Rcd8 23. Nf5 (23. Bxg7 Kxg7 24. Nf5+ Kf8 $16) 23... Rxd5 24. Bxd5 (24. cxd5 Ne5 $18) 24... Ne5 25. Bxe5 Rxe5) 23. Nf5 $1 {[%emt 0:01:30]} Bxd5 {[%emt 0:00:00]} (23... Qc7 24. Bxg7) 24. Bxd5 {[%emt 0:00:00]} Ne6 {[%emt 0:00:00]} 25. h4 {[%emt 0:00:00][%cal Bh2h4,Bh4g5][%mdl 32]} g6 {[%emt 0:00:00]} 26. hxg5 {[%emt 0:00:00]} h5 {[%emt 0:00:00]} 27. Nh6+ {[%emt 0:00:00]} Kh7 {[%emt 0:00:00] [#]} 28. Qxh5 $3 {[%emt 0:00:00][%mdl 512] White mates.} Nf4 {[%emt 0:01:14]} 29. Qh4 {[%emt 0:00:00]} (29. gxf4 gxh5 30. Bxf7 Qxf4 31. g6+ Kxh6 $17) 29... Nh5 {[%emt 0:00:41]} 30. Ng4 {[%emt 0:00:00] White took control after the opening.   Weighted Error Value: White=0.30/Black=0.95.  Mistake:       	---       	Black=3      Inaccurate:     	White=1     	Black=1      OK:         	White=2     	Black=2      Best:        	White=4     	---} 1-0

[Event "Baku Open 2024"]
[Site "Baku"]
[Date "2024.07.03"]
[Round "5.5"]
[White "Manafov, Vugar"]
[Black "Pranav Vijay"]
[Result "0-1"]
[ECO "A91"]
[WhiteElo "2430"]
[BlackElo "2252"]
[Annotator "TA"]
[PlyCount "138"]
[EventDate "2024.06.29"]
[EventType "swiss"]
[EventCountry "AZE"]
[SourceTitle "playchess.com"]
[Source "ChessBase"]
[SourceQuality "1"]
[TimeControl "5400+30"]

{[%evp 37,138,-24,-21,-25,-20,-20,-27,-26,-34,-35,-35,-35,-5,-7,-12,-35,-35,-35,-35,-35,-35,-35,-35,-35,-35,-41,0,-35,-35,-35,-35,-35,-35,-35,-35,-35,-35,-35,-35,-35,-35,-35,-35,-35,-35,-35,-35,-35,0,-46,0,0,0,0,0,0,6,0,0,0,0,0,0,0,0,0,0,0,0,0,0,0,0,0,0,-4,0,0,0,0,0,0,0,-260,-232,-1131,-984,-2536,-1278,-5484,-2448,-5126,-1583,-4822,-4710,-4627,-4134,-4618,-4618,-4133,-2672,-29970,-1074]} 1. d4 {[%emt 0:04:02]} f5 {[%emt 0:00:12]} 2. c4 {[%emt 0:00:11]} Nf6 {[%emt 0:00:18]} 3. g3 {[%emt 0:00:43]} e6 {[%emt 0:00:18]} 4. Bg2 {[%emt 0:00:15]} Be7 {[%emt 0:00:21]} 5. Nc3 {[%emt 0:00:57]} d5 {[%emt 0:00:39]} 6. Nf3 {[%emt 0:02:28]} c6 {[%emt 0:01:46]} 7. O-O {[%emt 0:01:00]} Ne4 {[%emt 0:02:15]} 8. Ne5 {[%emt 0:06:09]} Nd7 {[%emt 0:00:44]} 9. Nxd7 {[%emt 0:01:39]} Bxd7 {[%emt 0:00:24]} 10. Qb3 {[%emt 0:00:59]} Nxc3 {[%emt 0:18:14]} 11. Qxc3 {[%emt 0:05:17]} h5 {[%emt 0:09:09]} 12. Qb3 {[%emt 0:14:43]} Qb6 {[%emt 0:08:22]} 13. Bf4 {[%emt 0:03:05]} Bf6 {[%emt 0:08:38]} 14. e3 {[%emt 0:01:10]} h4 {[%emt 0:00:22]} 15. Rfc1 {[%emt 0:02:25]} Kf7 {[%emt 0:02:18]} 16. c5 {[%emt 0:15:31]} Qxb3 {[%emt 0:03:55]} 17. axb3 {[%emt 0:00:05]} g5 {[%emt 0:00:50]} 18. Bd6 {[%emt 0:00:57]} a6 {[%emt 0:03:35]} 19. f3 {[%emt 0:01:52]} Rae8 {[%emt 0:06:44]} 20. Kf2 {[%emt 0:01:16]} e5 {[%emt 0:01:09]} 21. dxe5 {[%emt 0:00:40]} Bxe5 {[%emt 0:00:08]} 22. Bxe5 {[%emt 0:00:17]} Rxe5 {[%emt 0:31:09]} 23. Ra4 {[%emt 0:00:31]} hxg3+ {[%emt 0:00:00]} 24. hxg3 {[%emt 0:01:45]} Kf6 {[%emt 0:00:00]} 25. Rb4 {[%emt 0:01:19]} Bc8 {[%emt 0:00:00]} 26. Rd4 {[%emt 0:05:26]} Re7 {[%emt 0:00:00]} 27. Re1 {[%emt 0:06:41]} Be6 {[%emt 0:00:00]} 28. Rb4 {[%emt 0:01:10]} Bf7 {[%emt 0:00:00]} 29. Rh1 {[%emt 0:01:35]} Rhe8 {[%emt 0:00:00]} 30. Re1 $1 {[%emt 0:00:12]} Rb8 {[%emt 0:00:00]} 31. Ra1 {[%emt 0:00:22]} Rbe8 {[%emt 0:00:00]} 32. Re1 $1 {[%emt 0:00:03]} Bg6 {[%emt 0:00:00]} 33. Bf1 {[%emt 0:00:32]} Rh7 {[%emt 0:00:00]} 34. Bg2 {[%emt 0:00:21]} Re6 {[%emt 0:00:00]} 35. Ra4 {[%emt 0:01:09]} Rhe7 {[%emt 0:00:00]} 36. Bf1 {[%emt 0:00:17]} Kg7 {[%emt 0:00:00]} 37. Bg2 {[%emt 0:00:43]} Kf8 {[%emt 0:00:00]} 38. Bf1 {[%emt 0:00:15]} Ke8 {[%emt 0:00:00]} 39. Bg2 {[%emt 0:01:51]} Kd8 {[%emt 0:00:00]} 40. Raa1 {[%emt 0:04:35]} Kc7 {[%emt 0:00:00]} 41. b4 {[%emt 0:02:44]} Kd8 {[%emt 0:00:00]} 42. f4 {[%emt 0:00:47]} Bh5 {[%emt 0:00:00]} 43. Bh3 {[%emt 0:03:37]} (43. fxg5 $11 Rg6 44. Rh1 Rxg5 45. Rh4) 43... Rf7 {[%emt 0:00:00]} (43... Bg4 $15 44. Bg2 d4 45. fxg5 dxe3+ 46. Kg1 Ke8) 44. Rh1 $11 {[%emt 0:05:49]} gxf4 {[%emt 0:03:25]} 45. gxf4 {[%emt 0:00:09]} d4 {[%emt 0:01:51]} 46. Ra3 {[%emt 0:01:07]} Kc7 {[%emt 0:03:03]} 47. Bf1 {[%emt 0:00:06]} (47. Rd3 {simplifies} dxe3+ 48. Rxe3 Rxe3 49. Kxe3 Re7+ 50. Kf2) 47... Bg4 {[%emt 0:02:05]} 48. Bc4 {[%emt 0:01:08]} (48. exd4 Re4 49. Rd3 Rd7 $17 (49... Rxf4+ 50. Kg3 $17)) 48... dxe3+ {[%emt 0:00:01]} 49. Kg3 {[%emt 0:00:52]} Rfe7 {[%emt 0:00:08]} 50. Bxe6 {[%emt 0:00:04]} Rxe6 {[%emt 0:00:03]} 51. Re1 {[%emt 0:04:16]} e2 {[%emt 0:00:04]} 52. Kh4 {[%emt 0:00:45]} Re4 {[%emt 0:02:07]} 53. Kg5 {[%emt 0:00:04]} Rxb4 {[%emt 0:00:18]} 54. Rg3 $1 {[%emt 0:01:02]} Rxb2 {[%emt 0:00:02]} 55. Rxg4 $1 {[%emt 0:00:03]} fxg4 {[%emt 0:00:04]} 56. f5 $1 {[%emt 0:00:01]} g3 {[%emt 0:00:35]} 57. f6 {[%emt 0:00:03]} Rb3 $1 {[%emt 0:02:05]} 58. Kf4 {[%emt 0:01:31]} Kd8 {[%emt 0:01:31]} 59. Rxe2 {[%emt 0:00:05]} Rb1 $1 {[%emt 0:00:02]} 60. Kf5 $2 {[%emt 0:01:16][%mdl 8192] [#]} (60. Kg5 $11) 60... Rf1+ $1 $19 {[%emt 0:00:09]} 61. Kg6 $2 {[%emt 0:00:31] [#]} (61. Ke6 Ke8 62. Rg2) 61... Rf2 $1 $19 {[%emt 0:00:18]} 62. Re3 {[%emt 0:00:08]} g2 {[%emt 0:00:10]} 63. Rg3 {[%emt 0:00:02]} Ke8 {[%emt 0:00:54]} 64. Kg7 {[%emt 0:00:29]} a5 {[%emt 0:00:12]} 65. Re3+ {[%emt 0:00:22]} Kd7 {[%emt 0:00:20]} 66. Rg3 {[%emt 0:00:13]} Ke6 {[%emt 0:00:08]} 67. Rg6 {[%emt 0:01:15]} a4 {[%emt 0:00:35]} 68. f7+ {[%emt 0:00:34]} Ke7 {[%emt 0:00:03]} 69. Kg8 {[%emt 0:00:02]} Rxf7 {[%emt 0:00:34]} (69... a3 $142 70. Rg7 Kd8 71. f8=Q+ Rxf8+ 72. Kxf8 a2 73. Rxg2 a1=Q (73... a1=B 74. Kf7 $11) 74. Rg7 Qe5 (74... Qf6+ 75. Kg8) 75. Rh7 Qxc5+ 76. Kg8 Qd5+ 77. Kg7 c5 78. Kg6 Qe4+ 79. Kh6 c4 80. Rf7 c3 81. Kg7 c2 82. Rf8+ Ke7 83. Rf7+ Kd6 84. Rf6+ Kc5 85. Rf7 Qe5+ (85... c1=R {leads to mate.} 86. Rc7+ Kd6 87. Rxc1 Ke6 88. Rc8 Qg4+ 89. Kh7 Kf7 90. Rc7+ Kf6 91. Kh8 Qh3+ 92. Kg8 Qg3+ 93. Kh8 Qxc7 94. Kg8 Qg7#) 86. Kg6 c1=Q (86... c1=R {is a self mate.} 87. Rf5 Rg1+ 88. Kh6 Kd4 89. Rxe5 Kxe5 90. Kh5 Kf4 91. Kh6 Kf5 92. Kh7 Kf6 93. Kh8 Kf7 94. Kh7 Rh1#) 87. Rf5 Qg1+ 88. Kh6 Qgg7+ 89. Kh5 Qxf5+ 90. Kh4 Qfh7#) 0-1

[Event "Baku Open 2024"]
[Site "Baku"]
[Date "2024.07.03"]
[Round "5.6"]
[White "Puranik, Abhimanyu"]
[Black "Suyarov, Mukhammadzokhid"]
[Result "1-0"]
[ECO "C42"]
[WhiteElo "2632"]
[BlackElo "2430"]
[Annotator "TA"]
[PlyCount "111"]
[EventDate "2024.06.29"]
[EventType "swiss"]
[EventCountry "AZE"]
[SourceTitle "playchess.com"]
[Source "ChessBase"]
[SourceQuality "1"]
[TimeControl "5400+30"]

{[%evp 18,111,18,22,0,0,0,23,29,0,25,32,52,-7,48,0,0,-73,-25,-137,-129,-134,-73,-85,-111,-108,0,0,-9,-4,-14,-12,-20,-12,26,10,85,32,32,32,27,33,16,18,95,112,104,37,142,75,122,113,129,126,295,237,317,325,305,260,292,263,325,250,252,224,246,222,362,366,397,400,372,396,396,379,380,387,450,445,483,459,527,536,850,845,808,775,827,812,927,936,936,289,925,893]} 1. e4 {[%emt 0:01:08]} e5 {[%emt 0:00:51]} 2. Nf3 {[%emt 0:02:38]} Nf6 {[%emt 0:00:24]} 3. Nxe5 {[%emt 0:00:05]} d6 {[%emt 0:00:14]} 4. Nf3 {[%emt 0:00:08]} Nxe4 {[%emt 0:00:19]} 5. Nc3 {[%emt 0:00:28]} Nxc3 {[%emt 0:00:38]} 6. dxc3 {[%emt 0:00:04]} Be7 {[%emt 0:00:43]} 7. Bf4 {[%emt 0:00:42]} Nd7 {[%emt 0:00:47]} 8. Qd2 {[%emt 0:00:40]} O-O {[%emt 0:01:31]} 9. O-O-O {[%emt 0:00:06]} Nc5 {[%emt 0:00:39]} 10. Nd4 {[%emt 0:00:37]} d5 {[%emt 0:22:35]} 11. f3 {[%emt 0:03:47][%cal Oh2h4] Wards off Ne4} c6 {[%emt 0:00:54]} 12. h4 {[%emt 0:07:57]} Bd7 {[%emt 0:06:26] White has an edge.} 13. h5 {[%emt 0:04:45]} b5 {[%emt 0:01:36]} 14. g4 {[%emt 0:06:37]} h6 {[%emt 0:06:11]} 15. Kb1 {[%emt 0:01:21]} (15. Rg1 $14) 15... a5 {[%emt 0:03:42]} (15... Re8 $11) 16. Be2 {[%emt 0:22:53]} (16. Rg1 $1 $14) 16... Re8 $11 {[%emt 0:10:58]} 17. Rh2 {[%emt 0:09:53]} (17. Rhg1 $11 {keeps the balance.}) 17... Na4 {[%emt 0:07:43]} (17... Bf6 $17 {[%cal Ob5b4] Strongly threatening ...b4!} 18. Rg2 b4) 18. Rg2 {[%emt 0:05:36]} (18. b3 $1 $11 {was the only way to keep the balance.} Nc5 19. Bf1) 18... b4 $17 {[%emt 0:06:33] [#] Threatens to win with ...bxc3.} 19. c4 {[%emt 0:03:02]} Bf6 {[%emt 0:04:23]} (19... Qb6 $142 {[%cal Oa4c3] ...Nc3+! would now be deadly.} 20. Qd3 c5) 20. g5 {[%emt 0:03:38]} hxg5 {[%emt 0:00:52]} 21. Bxg5 {[%emt 0:00:24]} c5 {[%emt 0:00:52]} (21... Bxg5 $17 22. Rxg5 Qf6) 22. Qf4 {[%emt 0:02:06]} Be5 {[%emt 0:12:35]} (22... Bxg5 23. Rxg5 f6 (23... cxd4 $2 24. h6 $18) 24. Rg6 $18) 23. Qxe5 {[%emt 0:11:24]} Rxe5 {[%emt 0:00:12]} 24. Bxd8 {[%emt 0:00:02]} Rxd8 {[%emt 0:10:52]} 25. Nb3 {[%emt 0:01:06][%csl LRa5,LRd5]} Bh3 {[%emt 0:00:00]} 26. Rh2 {[%emt 0:00:40]} d4 {[%emt 0:00:00]} (26... Rxh5 27. Rdh1 dxc4 28. Nxa5 $14 (28. Rxh3 Rxh3 29. Rxh3 cxb3 $17) (28. Nc1 Rd4 $16)) (26... Bf5 $11) 27. Bd3 {[%emt 0:02:04]} ({White should play} 27. Rg1 $16) 27... Bd7 $14 {[%emt 0:00:00]} (27... Rxh5 $2 {perishes.} 28. Rdh1 $18 (28. Nxa5 Rd6 $15)) 28. Nxa5 {[%emt 0:00:19]} Rde8 {[%emt 0:00:00]} 29. Rhh1 {[%emt 0:00:05]} Re3 {[%emt 0:00:00]} 30. Be4 {[%emt 0:03:26]} f5 {[%emt 0:00:00]} (30... Re5 $1 $11) 31. Bd5+ $16 {[%emt 0:00:03]} Kh7 {[%emt 0:00:00]} 32. Nb7 {[%emt 0:02:50]} (32. f4 $16) 32... R8e5 {[%emt 0:01:02]} (32... R8e7 $14) 33. Kc1 {[%emt 0:02:55]} (33. Nd6 $142 {[%cal Oh5h6] h6! is the strong threat.} Re7 34. Rdg1) 33... Re2 {[%emt 0:00:59]} (33... Re7 $142) 34. b3 {[%emt 0:01:36]} Nc3 {[%emt 0:01:06][%csl LRa2,LRd1,LRd5]} 35. Nxc5 $1 {[%emt 0:00:06][%cal Of3f4]} Be8 $2 {[%emt 0:01:13] This move loses the game for Black.} (35... Nxa2+ 36. Kb2 Nc3 37. Nxd7 $18) ({Wrong is} 35... Nxd1 $2 36. Rxd1 Be8 37. Rxd4 $18) (35... f4 $16) 36. Rxd4 {[%emt 0:02:08]} Re1+ {[%emt 0:01:02]} 37. Rxe1 {[%emt 0:00:02]} Rxe1+ {[%emt 0:00:10]} 38. Kd2 {[%emt 0:00:01]} Rd1+ {[%emt 0:00:21]} 39. Ke3 {[%emt 0:00:04]} Re1+ {[%emt 0:00:21]} 40. Kf2 {[%emt 0:00:25]} Re2+ {[%emt 0:00:10] [#]} 41. Kf1 $1 {[%emt 0:00:28]} Rxc2 {[%emt 0:00:22]} 42. Be6 {[%emt 0:00:07]} g6 {[%emt 0:00:58]} (42... Rxa2 {was worth a try.} 43. Bxf5+ Kh6) 43. Rd8 $18 {[%emt 0:00:31]} Bc6 {[%emt 0:00:39]} 44. hxg6+ {[%emt 0:00:38]} Kxg6 {[%emt 0:00:16]} 45. Rd6 {[%emt 0:00:30]} Be8 {[%emt 0:01:20]} 46. Bd7+ {[%emt 0:00:16]} Kf7 {[%emt 0:00:07]} 47. Bxf5 {[%emt 0:00:05]} Rc1+ {[%emt 0:00:21]} 48. Kf2 {[%emt 0:00:45] aiming for Bg6+.} Kg7 {[%emt 0:00:02]} 49. Rb6 {[%emt 0:01:22]} Nxa2 {[%emt 0:00:05]} 50. Ne4 {[%emt 0:00:56]} Rb1 {[%emt 0:00:24]} 51. Rb7+ {[%emt 0:00:05]} Kf8 {[%emt 0:00:11]} 52. Nc5 {[%emt 0:00:35] Threatening mate with Ne6+.} Rb2+ {[%emt 0:00:16]} 53. Kg3 {[%emt 0:00:04]} Nc3 {[%emt 0:00:06]} 54. Ne6+ {[%emt 0:00:54]} Kg8 {[%emt 0:00:01]} 55. Rg7+ {[%emt 0:00:21]} Kh8 {[%emt 0:00:00]} 56. Re7 {[%emt 0:00:07] Weighted Error Value: White=0.19 (very precise) /Black=0.42.  Loses game:     	---       	Black=1      Mistake:       	White=7     	Black=9      Inaccurate:     	White=1     	Black=3      OK:         	White=19    	Black=13     Best:        	White=4     	Black=3      Strong:       	White=2     	---} 1-0

[Event "Baku Open 2024"]
[Site "Baku"]
[Date "2024.07.03"]
[Round "5.7"]
[White "Stribuk, Artiom"]
[Black "Suleymanli, Aydin"]
[Result "0-1"]
[ECO "A14"]
[WhiteElo "2422"]
[BlackElo "2626"]
[Annotator "TA"]
[PlyCount "60"]
[EventDate "2024.06.29"]
[EventType "swiss"]
[EventCountry "AZE"]
[SourceTitle "playchess.com"]
[Source "ChessBase"]
[SourceQuality "1"]
[TimeControl "5400+30"]

{[%evp 12,60,7,10,13,8,14,14,15,8,0,2,18,21,33,0,0,0,0,0,0,-192,-214,-182,-187,-468,-470,-432,-321,-380,-256,-270,-202,-210,-202,-398,-341,-351,-345,-474,-494,-483,-475,-473,-362,-367,-355,-345,-352,-540,-343]} 1. c4 {[%emt 0:00:03]} Nf6 {[%emt 0:00:10]} 2. Nf3 {[%emt 0:00:10]} e6 {[%emt 0:00:08]} 3. g3 {[%emt 0:00:11]} d5 {[%emt 0:00:12]} 4. Bg2 {[%emt 0:00:09]} Be7 {[%emt 0:00:05]} 5. O-O {[%emt 0:00:11]} O-O {[%emt 0:00:04]} 6. b3 {[%emt 0:00:12]} d4 {[%emt 0:03:22]} 7. e3 {[%emt 0:00:08]} c5 {[%emt 0:00:06]} 8. Ne5 {[%emt 0:00:08] Prevents Nc6} Qc7 {[%emt 0:00:08]} 9. f4 {[%emt 0:00:10]} Nfd7 {[%emt 0:00:27] The position is equal.} 10. exd4 {[%emt 0:06:37]} cxd4 {[%emt 0:00:07]} 11. Nd3 {[%emt 0:00:39]} Nc6 {[%emt 0:00:20]} 12. Ba3 {[%emt 0:01:49] [#] Hoping for Bxc6.} Qd8 {[%emt 0:00:05]} 13. Qc1 {[%emt 0:02:36]} Re8 {[%emt 0:05:22]} 14. Bxe7 {[%emt 0:09:39]} Rxe7 {[%emt 0:01:16]} 15. b4 {[%emt 0:06:03]} a5 {[%emt 0:17:00]} 16. Qa3 {[%emt 0:18:50] [#] Black continues to play with concentration.} (16. b5 $11 {and White stays safe.} Nb4 17. Nxb4 axb4 18. c5) 16... axb4 $1 $19 {[%emt 0:01:23]} 17. Qb2 {[%emt 0:06:49]} (17. Qxa8 $2 Nb6 18. Bxc6 Nxa8 $19) 17... e5 {[%emt 0:17:07]} 18. fxe5 $2 {[%emt 0:06:08]} (18. Nxb4 Qb6 19. a3) 18... Ndxe5 {[%emt 0:00:35]} 19. Nxe5 {[%emt 0:00:30]} Rxe5 {[%emt 0:06:45]} 20. d3 {[%emt 0:00:17]} Qg5 {[%emt 0:05:57] Strongly threatening ...Qe7.} 21. Nd2 {[%emt 0:03:08]} Qe3+ {[%emt 0:04:36]} 22. Rf2 {[%emt 0:02:21]} Qxd3 {[%emt 0:02:44]} 23. Bd5 $2 {[%emt 0:01:25]} (23. Bxc6 bxc6 24. Nf3) 23... Be6 {[%emt 0:01:12]} 24. Nf3 {[%emt 0:00:11] Black must now prevent Bxc6.} Rf5 {[%emt 0:02:34]} 25. Bxc6 {[%emt 0:03:19]} bxc6 {[%emt 0:00:57]} 26. Nxd4 {[%emt 0:00:03]} Rxf2 {[%emt 0:00:19]} 27. Qxf2 {[%emt 0:00:34]} Qxc4 {[%emt 0:00:32][%cal Ra8a2]} 28. Nxe6 {[%emt 0:00:40]} Qxe6 {[%emt 0:00:10] KQR-KQR} 29. Re1 {[%emt 0:00:14]} Qd5 {[%emt 0:00:43][%cal Oc6c5]} (29... Qxa2 $2 {too greedy.} 30. Qxa2 Rf8 31. Qc4 $18 (31. Qb3 c5 $18)) 30. Qa7 {[%emt 0:00:45]} (30. Qe2 {is a better defense.} Qc5+ (30... Qxa2 31. Qe8+ Rxe8 32. Rxe8#) 31. Kh1) 30... Rf8 {[%emt 0:00:54] Weighted Error Value: White=0.59/Black=0.30.  Loses game:     	White=1     	---        Mistake:       	White=3     	---        Inaccurate:     	White=2     	Black=2      OK:         	White=8     	Black=6      Best:        	White=1     	---        Strong:       	---       	Black=1} ({Not} 30... Rxa7 31. Re8#) 0-1